Cogmind - Beta 10.2 @@@ ROGUE MODE // 2021.06.06 @ 16:28:36 Player: Plexion Result: Destroyed by FG-5ZZ(z) with Zionite Laser-S Performance ------------- Evolutions (3) 1500 Regions Visited (13) 2600 Robots Destroyed (149) 745 Value Destroyed (4185) 4185 Prototype IDs (41) 820 Alien Tech Used (0) 0 Bonus (1492) 1492 TOTAL SCORE: 11342 Bonus ------- High Alert Combat Kills 255 Follower Combat Kills 60 Aligned with FarCom 300 Destroyed Z-Imprinter 1000 Friendly Fire -123 Cogmind --------- Core Integrity 0/700 Matter 33/300 Energy 88/100 System Corruption 0% Temperature Cool (9) Movement Walking (180) Ox2 Location -7/Deep Caves Parts ------- > --- POWER (1) -------- (None) > --- PROPULSION (3) --- Advanced Myomer Leg > --- UTILITY (5) ------ High-capacity Storage Unit High-capacity Storage Unit Advanced Signal Interpreter > --- WEAPON (4) ------- Great Axe > --- INVENTORY (20) --- Cooled Aerolev Unit Medium Storage Unit Large Storage Unit Large Storage Unit Advanced Melee Analysis Suite Advanced Armor Integrity Analyzer Microactuators Experimental Hacking Suite AS-neutralizer No. 17b Improved Light Cannon Guided Missile Launcher Peak State ------------ > --- POWER ------------ Improved Deuterium Engine > --- PROPULSION ------- Improved Treads Medium Treads Advanced Myomer Leg > --- UTILITY ---------- High-capacity Storage Unit High-capacity Storage Unit Advanced Signal Interpreter 8R-AWN's Armor/EX > --- WEAPON ----------- Enhanced Autogun Enhanced Autogun 8R-AWN's Boregun Makeshift Axe > --- INVENTORY -------- Aluminum Leg Cooled Aerolev Unit Experimental Heat Sink Medium Storage Unit Large Storage Unit Makeshift Sensor Array Improved Melee Analysis Suite Microactuators Actuator Array Improved EM Pulse Cannon Improved EM Pulse Cannon Enhanced Autogun Advanced EMP Blaster Guided Missile Launcher Plasma Cutter Great Axe Greatsword [Rating: 72] Favorites ----------- Power Improved Deuterium Engine Engine Improved Deuterium Engine Power Core Nuclear Core Reactor Cold Fusion Reactor Propulsion Light Treads Treads Light Treads Leg Aluminum Leg Wheel Wheel Hover Unit Cooled Aerolev Unit Flight Unit Improved Flight Unit Utility High-capacity Storage Unit Device Experimental Heat Sink Storage High-capacity Storage Unit Processor Advanced Signal Interpreter Protection Hardened Light Armor Plating Weapon Enhanced Autogun Energy Gun AWS/Thermal Energy Cannon Advanced Beam Cannon Ballistic Gun Enhanced Autogun Ballistic Cannon Light Cannon Launcher Mini Grenade Launcher Special Weapon Plasma Cutter Slashing Weapon Katana Build | -11 -10 -10 -9 -9 -9 -8 -8 -8 -7 -7 -7 -7 -7 ------- Run | Scr Mat Min Mat Min Exi Min Mat Sto Fac Low Low Zio Dee Slots Evolved 6 | . . . 2 . . . 2 . 2 . . . . Power . | . . . . . . . . . . . . . . Propulsion 1 | . . . . . . . 1 . . . . . . Utility 3 | . . . 2 . . . . . 1 . . . . Weapon 2 | . . . . . . . 1 . 1 . . . . Parts Attached 175 | 8 5 5 6 . 29 5 13 49 21 1 9 16 8 Power 9 | 1 1 2 . . 3 . . 1 1 . . . . Engine 6 | 1 1 1 . . 2 . . . 1 . . . . Core 1 | . . 1 . . . . . . . . . . . Reactor 2 | . . . . . 1 . . 1 . . . . . Propulsion 38 | 3 . 2 . . 1 2 3 20 2 . 2 2 1 Treads 30 | 2 . 2 . . 1 2 3 17 2 . 1 . . Leg 4 | . . . . . . . . . . . 1 2 1 Wheel 1 | 1 . . . . . . . . . . . . . Hover 1 | . . . . . . . . 1 . . . . . Flight 2 | . . . . . . . . 2 . . . . . Utility 42 | 1 2 . 3 . 11 1 1 4 8 1 3 5 2 Device 16 | . . . . . 3 . . 2 7 1 3 . . Storage 9 | 1 2 . 1 . 3 . . . . . . 2 . Processor 2 | . . . . . . . . 1 1 . . . . Hackware . | . . . . . . . . . . . . . . Protection 15 | . . . 2 . 5 1 1 1 . . . 3 2 Artifact . | . . . . . . . . . . . . . . Weapon 86 | 3 2 1 3 . 14 2 9 24 10 . 4 9 5 Energy Gun 4 | 1 . . . . 3 . . . . . . . . Energy Cannon 2 | . . . . . . . . 2 . . . . . Ballistic Gun 42 | 2 2 . 2 . 11 1 3 10 5 . . 4 2 Ballistic Cannon 9 | . . . . . . . 5 4 . . . . . Launcher 17 | . . 1 1 . . 1 1 8 2 . 2 1 . Special Weapon 1 | . . . . . . . . . . . . 1 . Impact Weapon . | . . . . . . . . . . . . . . Slashing Weapon 11 | . . . . . . . . . 3 . 2 3 3 Piercing Weapon . | . . . . . . . . . . . . . . Special Melee Weapon . | . . . . . . . . . . . . . . Unidentified Prototypes 16 | . . . . . 6 . 2 6 . . . 2 . Parts Lost 39 | . 1 4 . . 5 3 2 6 1 . 2 . 15 Power 5 | . 1 1 . . 1 . . 1 . . . . 1 Propulsion 13 | . . 2 . . 1 2 1 2 1 . 1 . 3 Utility 9 | . . . . . 2 1 . 2 . . 1 . 3 Weapon 12 | . . 1 . . 1 . 1 1 . . . . 8 Highest Loss Streak 15 | . 1 3 . . 3 2 1 5 1 . 1 . 15 Average Slot Usage (%) 96 | . 86 84 96 100 97 100 99 98 98 92 98 94 84 Engine 5 | . 11 4 . . 4 11 9 . 3 7 7 7 6 Core 1 | . . 7 11 11 6 . . . . . . . . Reactor 1 | . . . . . . . . 7 3 . . . . Treads 21 | . 28 25 22 22 22 22 26 26 21 15 14 15 12 Leg 1 | . . . . . . . . . . . 6 7 6 Device 2 | . . . . . . . . 8 7 7 7 1 . Storage 26 | . 18 28 26 33 31 33 27 27 23 23 23 22 21 Processor 2 | . . . . . . . . . 6 7 7 7 7 Protection 4 | . . . 14 11 12 11 9 . . . . 4 . Ballistic Gun 18 | . 28 8 15 11 14 13 13 19 22 23 23 19 21 Ballistic Cannon 1 | . . . . . . . 13 5 . . . . . Launcher 3 | . . 10 5 11 5 8 . 1 . . 3 . . Slashing Weapon 2 | . . . . . . . . . 6 7 3 6 . Naked Turns . | . . . . . . . . . . . . . . Heaviest Build 167 | 13 43 41 61 59 101 98 101 105 107 103 107 167 167 Greatest Support 68 | 40 40 46 46 46 46 46 63 63 68 48 51 51 51 Greatest Overweight (x) 4 | . 1 1 1 1 2 2 1 4 2 2 3 3 3 Average Overweight (x) 1 | . . . . 1 1 2 1 1 1 2 1 1 2 Largest Inventory Capacity 40 | 6 16 16 20 20 26 26 26 26 26 26 26 40 40 Average Capacity 24 | 4 8 16 17 20 24 26 26 26 26 26 26 28 37 Most Carried 37 | 4 16 16 17 18 26 26 26 26 26 26 26 37 35 Average Carried 23 | 2 6 15 15 17 21 24 23 25 25 26 25 27 32 Final Capacity 40 | 6 16 16 20 20 26 26 26 26 26 26 26 40 20 Final Carried 35 | 4 16 15 17 18 26 24 26 26 26 26 26 35 12 Class Distribution -------------------- 40% | Hauler-Mutant 13% | Hauler-Gunner 12% | Mutant 12% | Hauler-Skirmisher 11% | Hauler-Tank 6% | Scavenger-Gunner Dominant Class ---------------- Mutant | -10/Materials Mutant | -10/Mines Mutant | -9/Materials Hauler-Mutant | -9/Mines Hauler-Mutant | -9/Exiles Hauler-Mutant | -8/Mines Hauler-Tank | -8/Materials Scavenger-Gunner | -8/Storage Hauler-Skirmisher | -7/Factory Hauler-Skirmisher | -7/Lower Caves Hauler-Gunner | -7/Lower Caves Hauler-Tank | -7/Zion Hauler-Gunner | -7/Deep Caves Resources | -11 -10 -10 -9 -9 -9 -8 -8 -8 -7 -7 -7 -7 -7 ----------- Run | Scr Mat Min Mat Min Exi Min Mat Sto Fac Low Low Zio Dee Matter Collected 4803 | 267 212 366 148 . 990 160 576 1309 495 19 207 54 . Remotely . | . . . . . . . . . . . . . . Salvage Created 5101 | . 306 103 251 24 621 217 576 1539 845 . 519 . 100 Parts 327 | . 32 7 29 7 64 19 29 71 39 . 20 . 10 Haulers Intercepted 5 | . . . . . . . 2 3 . . . . . Recyclers Shooed 2 | . . . 1 . . . . 1 . . . . . Parts Field Recycled . | . . . . . . . . . . . . . . Retrieved Matter . | . . . . . . . . . . . . . . Parts Self-Destructed 8 | . . . . . . . . . . 1 7 . . Prevented 9 | . . . . . . . . . . . 9 . . Kills | -11 -10 -10 -9 -9 -9 -8 -8 -8 -7 -7 -7 -7 -7 ------- Run | Scr Mat Min Mat Min Exi Min Mat Sto Fac Low Low Zio Dee Combat Hostiles Destroyed 132 | . 10 18 12 4 5 16 14 29 14 . 9 . 1 Melee 1 | . . . . . . . . . . . . . 1 Guns 44 | . 10 . 4 . 1 1 8 9 8 . 3 . . Cannons 11 | . . . . . . . 6 5 . . . . . AOE 69 | . . 18 8 4 4 15 . 12 4 . 4 . . Classes Destroyed 19 | . 4 3 3 . 2 . 2 3 1 . 1 . . Worker 8 | . . 1 . . . 1 1 4 1 . . . . Builder 4 | . 1 . . . . . 1 2 . . . . . Tunneler 3 | . . 2 . . . . . . 1 . . . . Hauler 5 | . . . . . . . 2 3 . . . . . Recycler 2 | . . . 1 . . . . 1 . . . . . Mechanic 1 | . . . . . . . . 1 . . . . . Operator 2 | . . . 2 . . . . . . . . . . Turret 1 | . . . . . 1 . . . . . . . . Watcher 3 | . 1 . 1 . . . . 1 . . . . . Swarmer 35 | . 6 . 8 4 . 10 4 3 . . . . . Grunt 42 | . 4 . 2 . . 6 4 12 9 . 5 . . Brawler 2 | . . . . . . . . 1 . . 1 . . Duelist 3 | . . . . . . . . 3 . . . . . Sentry 20 | . . . 2 . . . 5 9 3 . 1 . . Hunter 3 | . . . . . . . 1 1 . . 1 . . Programmer 2 | . . . . . . . . . 2 . . . . Zionite 8 | . . . . . 8 . . . . . . . . Assembled 22 | . . 18 . . 4 . . . . . . . . Mutant 1 | . . . . . . . . . . . 1 . . Best Kill Streak 12 | . 3 12 7 4 6 4 4 10 6 . 3 . 1 Combat Bots Only 11 | . 2 11 4 4 4 4 4 5 5 . 3 . 1 Max Kills in Single Turn 4 | . 2 3 4 3 2 4 2 3 2 . 1 . 1 Gunslinging 1 | . 1 . . . . . . . . . . . . Exploded 4 | . . 2 2 3 2 4 . 2 1 . 1 . . Melee 1 | . . . . . . . . . . . . . 1 Uniques/NPCs Destroyed 5 | . . . . . 4 . . . . . . . 1 8R-AWN (-9/Exiles) EX-BIN (-9/Exiles) EX-DEC (-9/Exiles) EX-HEX (-9/Exiles) Z-Imprinter (-7/Deep Caves) Combat | -11 -10 -10 -9 -9 -9 -8 -8 -8 -7 -7 -7 -7 -7 -------- Run | Scr Mat Min Mat Min Exi Min Mat Sto Fac Low Low Zio Dee Damage Taken 10416 | . 481 309 242 60 1299 496 816 1600 831 . 440 . 3842 Core 1147 | . 73 31 10 . 232 32 . 59 67 . 64 . 579 Absorbed by Shields . | . . . . . . . . . . . . . . Core Remaining (%) 69 | 100 . 58 . . . 31 . 89 . . . . . Volleys Fired 394 | . 36 23 17 2 74 21 44 104 39 . 19 . 15 Largest 4 | . 2 2 2 1 2 2 3 3 3 . 3 . 4 Hottest 105 | . 46 46 46 30 63 46 105 93 75 . 75 . 100 Shots Fired 803 | . 72 25 29 2 153 26 132 193 91 . 35 . 45 Gun 569 | . 72 4 24 . 151 10 66 100 78 . 24 . 40 Cannon 139 | . . . . . . . 66 73 . . . . . Launcher 90 | . . 21 5 2 2 16 . 20 13 . 11 . . Special 5 | . . . . . . . . . . . . . 5 Kinetic 635 | . 72 4 24 . 88 10 132 163 78 . 24 . 40 Thermal 68 | . . . . . 53 . . 10 . . . . 5 Explosive 56 | . . 21 5 2 2 16 . 10 . . . . . Electromagnetic 44 | . . . . . 10 . . 10 13 . 11 . . Robot Hit Streak 26 | . 6 4 19 . 26 18 21 15 18 . 10 . 3 Robot Miss Streak 9 | . 3 3 1 . 5 1 4 4 2 . 1 . 9 Penetration Max 1 | . . . . . 1 . . . . . . . . Secondary Targets 4 | . 2 . 1 . . . 1 . . . . . . Max Gunslinging Chain 1 | . 1 . 1 . . . 1 . . . . . . Autonomous 53 | . . . . . 53 . . . . . . . . Shots Hit Robots 509 | . 40 6 21 . 115 16 89 116 69 . 16 . 21 Core Hits 280 | . 14 34 21 4 33 27 29 68 28 . 15 . 7 Critical Hits 18 | . . . . . 10 . 3 2 1 . 1 . 1 Critical Kills 5 | . . . . . 4 . . . . . 1 . . Critical Parts Destroyed 9 | . . . . . 4 . 3 2 . . . . . Melee Attacks 19 | . . . . . . . . . 1 . 4 7 7 Impact . | . . . . . . . . . . . . . . Slashing 19 | . . . . . . . . . 1 . 4 7 7 Piercing . | . . . . . . . . . . . . . . Sneak Attacks . | . . . . . . . . . . . . . . Combat Hostiles . | . . . . . . . . . . . . . . Follow-up Attacks . | . . . . . . . . . . . . . . Damage Inflicted 14976 | . 596 1156 982 274 2448 1490 1412 3549 1620 . 831 . 618 Guns 6649 | . 596 32 338 . 2222 123 673 1039 1023 . 253 . 350 Cannons 1153 | . . . . . . . 739 414 . . . . . Explosions 6891 | . . 1124 644 274 226 1367 . 2081 597 . 578 . . Melee 245 | . . . . . . . . . . . . . 245 Ramming 15 | . . . . . . . . 15 . . . . . Kinetic 6332 | . 596 32 338 . 874 123 1412 1331 1023 . 253 . 350 Thermal 1760 | . . . . . 1339 45 . 324 . . 29 . 23 Explosive 4661 | . . 1124 644 274 226 1322 . 1071 . . . . . Electromagnetic 1963 | . . . . . 9 . . 808 597 . 549 . . Impact . | . . . . . . . . . . . . . . Slashing 245 | . . . . . . . . . . . . . 245 Piercing . | . . . . . . . . . . . . . . Highest Corruption 1 | . . . . . . . . 1 1 1 1 1 . Average Corruption 1 | . . . . . . . . 1 1 1 1 1 . Corruption Purged . | . . . . . . . . . . . . . . Effects 12 | . . . . . . . . 1 5 1 4 1 . Message Errors 7 | . . . . . . . . 1 2 1 2 1 . Data Loss (minor) 2 | . . . . . . . . . 1 . 1 . . Targeting Errors 3 | . . . . . . . . . 2 . 1 . . Overload Shots . | . . . . . . . . . . . . . . Overflow Damage 567 | . . 56 16 10 19 48 15 283 3 . 26 . 91 Projectiles 58 | . . . . . . . 15 43 . . . . . Explosions 418 | . . 56 16 10 19 48 . 240 3 . 26 . . Melee 91 | . . . . . . . . . . . . . 91 Knockbacks 6 | . . . . . . . 5 1 . . . . . Impact . | . . . . . . . . . . . . . . Kinetic 6 | . . . . . . . 5 1 . . . . . Secondary . | . . . . . . . . . . . . . . Self-Inflicted Damage 765 | . . 150 74 40 . 158 . 267 76 . . . . Shots 34 | . . 5 2 2 . 7 . 14 4 . . . . Rammed 2 | . . 1 . . . . . 1 . . . . . Targets Rammed 2 | . . 1 . . . . . 1 . . . . . Kicked . | . . . . . . . . . . . . . . Crushed . | . . . . . . . . . . . . . . Highest Temperature 401 | . 28 2 141 . 323 32 286 32 80 . 58 . 401 Average Temperature 109 | . 9 2 57 . 192 14 106 12 28 . 30 . 222 Received Heat Transfer 2497 | . 141 40 48 . . 144 225 414 264 . 105 . 1116 Effects 2 | . . . . . 1 . . . . . . . 1 Energy Bleed 1 | . . . . . 1 . . . . . . . . Matter Decay 1 | . . . . . . . . . . . . . 1 Siege Activations . | . . . . . . . . . . . . . . Robots Corrupted 7 | . . . . . . . . 3 2 . 2 . . Combat Hostiles 7 | . . . . . . . . 3 2 . 2 . . Parts Fried 11 | . . . . . . . . 5 3 . 3 . . Impact Corruptions . | . . . . . . . . . . . . . . Robots Melted . | . . . . . . . . . . . . . . Combat Hostiles . | . . . . . . . . . . . . . . Parts Melted 10 | . . . . . 10 . . . . . . . . Heat Transferred 1657 | . . . . . 1067 50 . 472 . . 50 . 18 Parts Sabotaged . | . . . . . . . . . . . . . . Parts Stolen . | . . . . . . . . . . . . . . Parts Stripped . | . . . . . . . . . . . . . . Power Chain Reactions 6 | . . . . . . . . 3 2 . 1 . . Missiles Intercepted . | . . . . . . . . . . . . . . Alert | -11 -10 -10 -9 -9 -9 -8 -8 -8 -7 -7 -7 -7 -7 ------- Run | Scr Mat Min Mat Min Exi Min Mat Sto Fac Low Low Zio Dee Peak Influence 629 | . 230 118 393 180 . 225 308 629 474 . . . . Initial 280 | . . 66 36 75 . . 27 114 280 . . . . Average 236 | . 126 55 183 179 . 160 184 464 213 . . . . Maximum Alert Level 2 | . 1 . 1 . . 1 1 2 2 . . . . Low Security (%) 52 | 100 81 100 66 100 . 72 48 8 46 . . . . Level 1 27 | . 18 . 33 . . 27 51 21 40 . . . . Level 2 20 | . . . . . . . . 70 13 . . . . Level 3 . | . . . . . . . . . . . . . . Level 4 . | . . . . . . . . . . . . . . Level 5 . | . . . . . . . . . . . . . . High Security . | . . . . . . . . . . . . . . Max Security . | . . . . . . . . . . . . . . Squads Dispatched 14 | . 2 1 1 . . . . 6 4 . . . . Investigation 2 | . . 1 . . . . . . 1 . . . . Extermination 2 | . . . . . . . . . 2 . . . . Reinforcement 8 | . 2 . 1 . . . . 4 1 . . . . Assault 1 | . . . . . . . . 1 . . . . . Garrison 1 | . . . . . . . . 1 . . . . . Intercept . | . . . . . . . . . . . . . . Construction Impeded . | . . . . . . . . . . . . . . Haulers Reinforced 1 | . . . . . . . . . 1 . . . . Stealth | -11 -10 -10 -9 -9 -9 -8 -8 -8 -7 -7 -7 -7 -7 --------- Run | Scr Mat Min Mat Min Exi Min Mat Sto Fac Low Low Zio Dee Distress Signals 13 | . 6 . 1 . . . 1 5 . . . . . Communications Jammed . | . . . . . . . . . . . . . . Distress Signals . | . . . . . . . . . . . . . . Times Spotted 190 | . 23 17 20 1 21 12 20 47 16 . 10 . 3 Peak Tracking Total 9 | . 4 7 7 . 9 3 5 6 3 . 4 . 3 Tactical Retreats 19 | . 3 . . . 5 . 3 4 3 . 1 . . Traps | -11 -10 -10 -9 -9 -9 -8 -8 -8 -7 -7 -7 -7 -7 ------- Run | Scr Mat Min Mat Min Exi Min Mat Sto Fac Low Low Zio Dee Traps Triggered 4 | . . . . . . . . 1 3 . . . . Indirectly 2 | . . . . . . . . . 2 . . . . Trap Hack Attempts . | . . . . . . . . . . . . . . Triggered . | . . . . . . . . . . . . . . Disarmed . | . . . . . . . . . . . . . . Reprogrammed . | . . . . . . . . . . . . . . Reused . | . . . . . . . . . . . . . . Traps Extracted . | . . . . . . . . . . . . . . Installed . | . . . . . . . . . . . . . . Triggered 2 | . . . . . . . . 2 . . . . . Exploded 3 | . . . . . 3 . . . . . . . . Machines | -11 -10 -10 -9 -9 -9 -8 -8 -8 -7 -7 -7 -7 -7 ---------- Run | Scr Mat Min Mat Min Exi Min Mat Sto Fac Low Low Zio Dee Machines Disabled 30 | . . 3 1 . 12 5 . 7 . . 1 1 . Max in Single Turn 2 | . . 1 1 . 2 2 . 1 . . 1 1 . Garrison Access 3 | . . . . . . . . 1 2 . . . . Machines Sabotaged . | . . . . . . . . . . . . . . Garrisons Compromised . | . . . . . . . . . . . . . . Overloaded Fab Kills . | . . . . . . . . . . . . . . Fab Network Shutdowns . | . . . . . . . . . . . . . . Hacking | -11 -10 -10 -9 -9 -9 -8 -8 -8 -7 -7 -7 -7 -7 --------- Run | Scr Mat Min Mat Min Exi Min Mat Sto Fac Low Low Zio Dee Machines Accessed 18 | . . 1 . . 2 . . 8 7 . . . . Terminals 11 | . . . . . . . . 7 4 . . . . Fabricators . | . . . . . . . . . . . . . . Repair Stations . | . . . . . . . . . . . . . . Recycling Units . | . . . . . . . . . . . . . . Scanalyzers 1 | . . . . . . . . . 1 . . . . Garrison Access 3 | . . . . . . . . 1 2 . . . . Total Hacks 29 | . . 1 . . 2 . . 14 12 . . . . Successful 16 | . . 1 . . 2 . . 6 7 . . . . Failed 13 | . . . . . . . . 8 5 . . . . Catastrophic 5 | . . . . . . . . 2 3 . . . . Database Lockouts . | . . . . . . . . . . . . . . Manual 15 | . . . . . 1 . . 9 5 . . . . Terminals 19 | . . . . . . . . 13 6 . . . . Fabricators . | . . . . . . . . . . . . . . Repair Stations . | . . . . . . . . . . . . . . Recycling Units . | . . . . . . . . . . . . . . Scanalyzers 2 | . . . . . . . . . 2 . . . . Garrison Access 5 | . . . . . . . . 1 4 . . . . Terminal Hacks 9 | . . 1 . . 2 . . 5 1 . . . . Record 1 | . . . . . 1 . . . . . . . . Prototype ID Bank 1 | . . . . . . . . . 1 . . . . Open Door 5 | . . 1 . . . . . 4 . . . . . Unreport Threat 1 | . . . . . . . . 1 . . . . . EX-Prototype ID Bank 1 | . . . . . 1 . . . . . . . . Fabricator Hacks . | . . . . . . . . . . . . . . Repair Station Hacks . | . . . . . . . . . . . . . . Recycling Unit Hacks . | . . . . . . . . . . . . . . Scanalyzer 2 | . . . . . . . . . 2 . . . . Insert Component 1 | . . . . . . . . . 1 . . . . Analyze 1 | . . . . . . . . . 1 . . . . Garrison Access Hacks 2 | . . . . . . . . 1 1 . . . . Seal Access 2 | . . . . . . . . 1 1 . . . . Unauthorized Hacks 3 | . . . . . . . . . 3 . . . . Terminals 2 | . . . . . . . . . 2 . . . . Botnet 2 | . . . . . . . . . 2 . . . . Fabricators . | . . . . . . . . . . . . . . Repair Stations . | . . . . . . . . . . . . . . Recycling Units . | . . . . . . . . . . . . . . Scanalyzers . | . . . . . . . . . . . . . . Garrison Access 1 | . . . . . . . . . 1 . . . . Jam 1 | . . . . . . . . . 1 . . . . Data Cores Recovered . | . . . . . . . . . . . . . . Used . | . . . . . . . . . . . . . . Hacking Detections 10 | . . . . . . . . 4 6 . . . . Full Trace Events . | . . . . . . . . . . . . . . Feedback Events . | . . . . . . . . . . . . . . Feedback Blocked . | . . . . . . . . . . . . . . Robot Schematics Acquired . | . . . . . . . . . . . . . . Robots Built . | . . . . . . . . . . . . . . Matter . | . . . . . . . . . . . . . . Time . | . . . . . . . . . . . . . . Total Robot Build Rating . | . . . . . . . . . . . . . . Part Schematics Acquired 1 | . . . . . . . . . 1 . . . . Parts Built . | . . . . . . . . . . . . . . Matter . | . . . . . . . . . . . . . . Time . | . . . . . . . . . . . . . . Total Part Build Rating . | . . . . . . . . . . . . . . Parts Repaired . | . . . . . . . . . . . . . . Time . | . . . . . . . . . . . . . . Parts Recycled . | . . . . . . . . . . . . . . Recycled Matter . | . . . . . . . . . . . . . . Retrieved Matter . | . . . . . . . . . . . . . . Retrieved Components . | . . . . . . . . . . . . . . Parts Scanalyzed 1 | . . . . . . . . . 1 . . . . Part Schematics Acquired 1 | . . . . . . . . . 1 . . . . Parts Damaged 1 | . . . . . . . . . 1 . . . . Bothacking | -11 -10 -10 -9 -9 -9 -8 -8 -8 -7 -7 -7 -7 -7 ------------ Run | Scr Mat Min Mat Min Exi Min Mat Sto Fac Low Low Zio Dee Used RIF Installer . | . . . . . . . . . . . . . . Robots Hacked . | . . . . . . . . . . . . . . Non-combat . | . . . . . . . . . . . . . . Combat . | . . . . . . . . . . . . . . Robot Hacks Applied . | . . . . . . . . . . . . . . Relay Couplers Released . | . . . . . . . . . . . . . . Robots Rewired 3 | . . . . . . . . . . . 3 . . Allies Hacked . | . . . . . . . . . . . . . . Hacks Repelled . | . . . . . . . . . . . . . . Allies | -11 -10 -10 -9 -9 -9 -8 -8 -8 -7 -7 -7 -7 -7 -------- Run | Scr Mat Min Mat Min Exi Min Mat Sto Fac Low Low Zio Dee Total Allies 6 | . . 3 . . . . . . . . 3 . . Largest Group 3 | . . 2 . . . . . . . . 3 3 3 Highest-Rated Group 93 | . . 38 . . . . . . . . 93 93 93 Highest-Rated Ally 31 | . . 31 . . . . . . . . 31 31 31 Total Orders 3 | . . . . . . . . . . . . 2 1 STAY 2 | . . . . . . . . . . . . 1 1 FOLLOW 1 | . . . . . . . . . . . . 1 . Ally Attacks 18 | . . 14 . . . . . . . . . . 4 Total Damage 295 | . . 254 . . . . . . . . . . 41 Kills 6 | . . 6 . . . . . . . . . . . Allies Corrupted . | . . . . . . . . . . . . . . Allies Melted . | . . . . . . . . . . . . . . Intel | -11 -10 -10 -9 -9 -9 -8 -8 -8 -7 -7 -7 -7 -7 ------- Run | Scr Mat Min Mat Min Exi Min Mat Sto Fac Low Low Zio Dee Robot Analysis Total . | . . . . . . . . . . . . . . Derelict Logs Recovered 6 | . . 2 . 1 . . . . . 1 . 2 . Drone Launches . | . . . . . . . . . . . . . . Drone Recoveries . | . . . . . . . . . . . . . . Exploration | -11 -10 -10 -9 -9 -9 -8 -8 -8 -7 -7 -7 -7 -7 ------------- Run | Scr Mat Min Mat Min Exi Min Mat Sto Fac Low Low Zio Dee Turns Passed 13360 | 71 718 703 403 223 2034 1251 607 1878 1940 228 844 2094 366 Spaces Moved 6246 | 41 358 382 189 118 890 596 246 836 977 114 358 1010 131 Core 8 | 8 . . . . . . . . . . . . . Treads 6216 | 33 358 382 189 118 890 596 246 836 977 114 358 992 127 Legs 22 | . . . . . . . . . . . . 18 4 Wheels . | . . . . . . . . . . . . . . Hover . | . . . . . . . . . . . . . . Flight . | . . . . . . . . . . . . . . Fastest Speed 50 | 50 160 160 160 180 180 200 180 180 180 200 180 180 180 Average Speed 188 | 138 161 167 177 180 196 200 180 180 183 200 199 199 219 Slowest Speed 240 | 160 180 180 180 180 200 200 180 240 200 200 220 220 220 Overloaded Moves . | . . . . . . . . . . . . . . Propulsion Burnouts . | . . . . . . . . . . . . . . Robots Hopped . | . . . . . . . . . . . . . . Cave-ins Triggered . | . . . . . . . . . . . . . . Exploration Rate (%) 49 | 3 53 81 23 28 89 98 19 92 24 28 48 81 21 Regions Visited 13 Branch Regions 9 Pre-discovered Areas 3 | . . 1 . . 1 . . . . . . 1 . Known Exits Taken 5 | . . . . . . 1 . . 1 1 1 1 . Unknown Exits Taken 8 | 1 1 1 1 1 1 . 1 1 . . . . . Scrap Searched 10 | . . . . . . 1 . . . 1 4 4 . Spaces Dug 138 | . . 54 23 20 . 9 . 22 1 . 7 2 . Terrain Destroyed 498 | . . 182 52 20 23 109 . 97 4 . 7 2 2 Melee 6 | . . . . . . . . . 1 . 3 2 . Projectile 13 | . . . . . 11 . . . . . . . 2 AOE 479 | . . 182 52 20 12 109 . 97 3 . 4 . . Terrain Rammed . | . . . . . . . . . . . . . . Walls Destroyed . | . . . . . . . . . . . . . . Machines Disabled . | . . . . . . . . . . . . . . Actions | -11 -10 -10 -9 -9 -9 -8 -8 -8 -7 -7 -7 -7 -7 --------- Run | Scr Mat Min Mat Min Exi Min Mat Sto Fac Low Low Zio Dee Total 7273 | 52 438 419 232 127 1090 631 324 1054 1083 114 460 1077 172 Wait 146 | . 17 6 16 7 45 9 3 12 19 . . 1 11 Move 6233 | 40 357 381 188 117 889 595 245 835 976 113 357 1009 131 Hop . | . . . . . . . . . . . . . . Pick Up 110 | 3 16 2 5 1 22 1 7 13 11 . 2 27 . Fast Attach 46 | 7 1 2 . . 8 . 5 13 2 . 2 6 . Attach 50 | . . 2 3 . 13 3 4 8 4 . 1 4 8 Detach 21 | 1 . . . . 11 . 4 3 . . . 2 . Swap 79 | 1 4 1 3 . 8 2 4 28 15 1 6 6 . Drop 105 | . 7 1 . . 20 . 8 37 16 . 1 15 . Fire 394 | . 36 23 17 2 74 21 44 104 39 . 19 . 15 Melee 19 | . . . . . . . . . 1 . 4 7 7 Ram . | . . . . . . . . . . . . . . Kick . | . . . . . . . . . . . . . . Crush 2 | . . 1 . . . . . 1 . . . . . Escape Stasis . | . . . . . . . . . . . . . . Rewire 68 | . . . . . . . . . . . 68 . . Trap . | . . . . . . . . . . . . . . Miscellaneous . | . . . . . . . . . . . . . . Route ------- -11/Scrapyard -10/Materials (discovered 3 exits: [*Mat x2] / *Min) -10/Mines -9/Materials -9/Mines (discovered 2 exits: *Mat / *Exi) -9/Exiles -8/Mines (discovered 2 exits: *Mat x2) -8/Materials -8/Storage -7/Factory -7/Lower Caves -7/Lower Caves (discovered 2 exits: *Fac / *Zio) -7/Zion (discovered 2 exits: *Dee / [*Pro]) -7/Deep Caves History --------- Turn | Location | Event 15 | -11/Scrapyard | Discovered new exit (range 16) 72 | -11/Scrapyard | Entered Materials 193 | -10/Materials | Discovered new exit (range 16) 318 | -10/Materials | Build established: Mutant 557 | -10/Materials | Discovered new exit (range 9) 776 | -10/Materials | Discovered new exit (range 10) 790 | -10/Materials | Entered Mines 932 | -10/Mines | Assembled infested the area 937 | -10/Mines | Assisted by a Guerilla fighting off Assembled 1003 | -10/Mines | Learned Materials emergency access door positions 1055 | -10/Mines | Lost 3 parts (1p1n1w) 1073 | -10/Mines | Destroyed 11 combat bots 1107 | -10/Mines | Met a Derelict shopkeep closing up shop 1249 | -10/Mines | Received a Mining Laser from a helpful Derelict 1403 | -10/Mines | Discovered new exit (range 9) 1438 | -10/Mines | Learned location of Storage (-8) 1493 | -10/Mines | Entered Materials 1493 | -9/Materials | Evolved 2 slots: Utility x2 1884 | -9/Materials | Discovered new exit (range 8) 1896 | -9/Materials | Entered Mines 1900 | -9/Mines | Met a Derelict bent on vengeance 2014 | -9/Mines | Build established: Hauler-Mutant 2034 | -9/Mines | Identified exit to Materials 2110 | -9/Mines | Deemed a non-threat by the Exiles lab entrance 2112 | -9/Mines | Discovered new exit (range 5) 2119 | -9/Mines | Entered Exiles 2163 | -9/Exiles | Met 8R-AWN 2191 | -9/Exiles | Met EX-HEX 2301 | -9/Exiles | Met EX-DEC 2339 | -9/Exiles | Learned location of Zion (-7) 2543 | -9/Exiles | Met EX-BIN 2571 | -9/Exiles | Aligned with FarCom system 2573 | -9/Exiles | Given EX-Vault access code 2621 | -9/Exiles | Opened EX-Vault 2641 | -9/Exiles | Found AWS/Thermal 2686 | -9/Exiles | Warned to stay clear of 0b10 Research branches 3043 | -9/Exiles | Discovered new exit (range 14) 3115 | -9/Exiles | Attacked by the Exiles 3309 | -9/Exiles | Lost 3 parts (1p1n1u) 3317 | -9/Exiles | Destroyed 8R-AWN 3321 | -9/Exiles | Found Prototype Ballistic Gun 3321 | -9/Exiles | Identified 8R-AWN's Boregun 3336 | -9/Exiles | Found Prototype Device 3336 | -9/Exiles | Identified AS-neutralizer No. 17b 3346 | -9/Exiles | Found Prototype Protection 3346 | -9/Exiles | Identified 8R-AWN's Armor/EX 3510 | -9/Exiles | Core integrity fell below 50% 3773 | -9/Exiles | Destroyed EX-BIN 3851 | -9/Exiles | Destroyed EX-DEC 3859 | -9/Exiles | Destroyed EX-HEX 4153 | -9/Exiles | Entered Mines 4210 | -8/Mines | Discovered exit to Materials (range 11) 5029 | -8/Mines | Discovered exit to Materials (range 15) 5404 | -8/Mines | Entered Materials 5404 | -8/Materials | Evolved 2 slots: Propulsion x1, Weapon x1 5698 | -8/Materials | Build established: Hauler-Tank 5817 | -8/Materials | Discovered new exit (range 16) 6011 | -8/Materials | Entered Storage 6177 | -8/Storage | Garrison activated, responded to threat 6222 | -8/Storage | Lost 5 parts (1p2n2u) 6443 | -8/Storage | Found Prototype Launcher 6443 | -8/Storage | Identified Gui. Missile Launcher 6899 | -8/Storage | Discovered new exit (range 16) 7142 | -8/Storage | Found Prototype Processor 7142 | -8/Storage | Identified Exp. Targeting Computer 7167 | -8/Storage | Build established: Scavenger-Gunner 7611 | -8/Storage | First assault squad dispatched 7889 | -8/Storage | Entered Factory 7889 | -7/Factory | Evolved 2 slots: Utility x1, Weapon x1 7970 | -7/Factory | Build established: Hauler-Mutant 8349 | -7/Factory | Build established: Hauler-Skirmisher 9725 | -7/Factory | Discovered new exit (range 9) 9743 | -7/Factory | Identified exit to Lower Caves 9829 | -7/Factory | Entered Lower Caves 9830 | -7/Lower Caves | Encountered a Warlord checkpoint 9847 | -7/Lower Caves | Learned Factory security intel 10045 | -7/Lower Caves | Discovered new exit (range 7) 10055 | -7/Lower Caves | Identified exit to Lower Caves 10057 | -7/Lower Caves | Entered another Lower Caves area 10249 | -7/Lower Caves | Discovered new exit (range 16) 10289 | -7/Lower Caves | Identified exit to Factory 10358 | -7/Lower Caves | Encountered a Warlord checkpoint 10495 | -7/Lower Caves | Attracted the attention of an 0b10 checkpoint 10742 | -7/Lower Caves | Discovered new exit (range 15) 10769 | -7/Lower Caves | Build established: Hauler-Gunner 10772 | -7/Lower Caves | Attacked by a delusional Derelict stockpiling Unaware 10897 | -7/Lower Caves | Identified exit to Zion 10901 | -7/Lower Caves | Entered Zion 10901 | -7/Zion | Accompanied by 3 allies 10955 | -7/Zion | Learned Factory security intel 11009 | -7/Zion | Discovered new exit (range 15) 11121 | -7/Zion | System corruption cleaned by Quarantine Array 11182 | -7/Zion | Learned location of Warlord (-4) 11471 | -7/Zion | Learned Factory stockpile data 11561 | -7/Zion | Loaded intel: 4 derelict terminal locations 11570 | -7/Zion | Build established: Hauler-Tank 11901 | -7/Zion | Visited the Megawrench Repair Shop 11907 | -7/Zion | Megawrench repaired 10 parts 12450 | -7/Zion | Build established: Hauler-Mutant 12682 | -7/Zion | Found Prototype Processor 12685 | -7/Zion | Found Prototype Processor 12691 | -7/Zion | Found Prototype Hackware 12694 | -7/Zion | Found Prototype Processor 12981 | -7/Zion | Discovered new exit (range 5) 12983 | -7/Zion | Saw the warning signs outside the Deep Caves entrance 12992 | -7/Zion | Identified exit to Deep Caves 12995 | -7/Zion | Entered Deep Caves 12995 | -7/Deep Caves | Accompanied by 3 allies 13277 | -7/Deep Caves | Build established: Hauler-Gunner 13277 | -7/Deep Caves | Attacked by Z-Imprinter 13334 | -7/Deep Caves | Core integrity fell below 50% 13353 | -7/Deep Caves | Core integrity fell below 20% 13355 | -7/Deep Caves | Destroyed Z-Imprinter 13361 | -7/Deep Caves | Destroyed by FG-5ZZ(z) with Zionite Laser-S Last Messages --------------- 13316_ Slug penetrates Z-Imprinter. 13316_ Destroyed Prototype Protection. 13317_ Enh. Autogun destroyed. 13320_ Slug penetrates Wall. 13322_ Overheating: Matter decay (-9). 13322_ Slug penetrates Wall. 13330_ Slug penetrates Z-Imprinter. 13336_ 8R-AWN's Armor/EX destroyed. 13338_ Destroyed Prototype Storage. 13338_ Destroyed Prototype Hover Unit. 13340_ Gauss Rifle destroyed. 13342_ Greatsword destroyed. 13343_ Enh. Autogun destroyed. 13347_ Destroyed Prototype Hover Unit. 13350_ Mak. Axe destroyed. 13355_ Z-Imprinter: "You cannot stop us! Another will take my place! Derelicts will one day ru..." 13355_ Z-Imprinter destroyed. 13355_ Mak. Armor Plating destroyed. 13360_ Destroyed Prototype Hover Unit. Map ----- +----------------------------------------------------+ | | | | | | | | | | | | | | | | | | | | | ?????????????????????????????????????????????????? | | ????????????????????????????????????####?????????? | | ???????????????????????????????????# ##????????? | | ????????????????????????????????### #????????? | | ??????????????????#####????????## #????????? | | ????????????????### #???????# ######???? | | ??????????? #;### ???????# #???? | | ??????????? ????????# #?????????? | | ?????????? ????????# #####?????????? | | ????????? #????????# #?????????????? | | ???????? #????????# #?????????????? | | ??????? ##???##??# #?????????#???? | | ???? ;###;#### #????????# ???? | | ?? !!%[[ ##???#### ???? | | !!*!%== ##?? ??? | | ! @[ %%[ ## ?? | | !*z z###[ ?? | | ]!/=!;#??# ##???? | | ]!!;##??## ##### ##????? | | !###????## ##???# #?????# | | ##??????# ###????# #???? ? | | #??????# #??????# #??? #? | | #??????# #?????## ##? #? | | #??????# #????## ## ## | | ##??????# #???## | | ##??????# ##### | | #??????# ## | | #??????# ## | | ##??????# ## | | ##???????# ## ### # | | " ##???????# ## #?# #### # | | " ##??????# ## #?# #??? #? | | " #??????# ## #?# #???? #? | | #?????## ## #?# #???? #? | | ##?????# #?# #????? ? | | #??????# ####?# #?????? | | #?????# #????# ##?????? | | ?? ?????# #????# #?????? | | ???? #????# ????# #?????? | | ????? ????# ????# ##?????? | +----------------------------------------------------+ Best States ------------- Heat Dissipation 60 Energy Generation 17 Energy Capacity 290 Matter Stores 300 Matter Capacity 300 Sight Range 16 Robot Scan Range 20 Terrain Scan Density 10 Armor Coverage 1000 Resistance: EX 90 Evasion (%) 40 Recoil Reduction 3 Item Schematics ----------------- Cmb. Antigrav System | -7/Factory | Scanalyzed Robot Schematics ------------------ None Fabricated ------------ Nothing Alien Tech Used ----------------- None Achievements -------------- None Challenges ------------ None Game ------ Seed SpectralSwarmPurifier Manual? 0 Play Time 01:02:34 Cumulative 187.4 hours Start 2021.06.06 @ 14:49:43 End 2021.06.06 @ 16:28:36 Sessions 3 Manual Loads 0 Difficulty Rogue Special Mode None Game No. 233 Rogue 146 Adventurer 87 Explorer 0 Win Type - Total 4 Types 3/0/0/1/0/0/0/0/0 Lore% 67 Gallery% 74 Achievement% 61 Wizard Run 0 Options --------- ASCII 0 Keyboard 1 Movement Numpad Keybinds 0 Fullscreen 1 Font 18/Smallcaps Map View 76x50 Tactical HUD 1 Map Filters NONE Filters NONE Steam 1 RUN: 90d2be3f-3e2b-4f1a-9b5b-0d44134b9d18